Cogmind - Beta 13 @@@ ROGUE MODE // 2024.08.06 @ 17:10:44 Player: yam Result: Destroyed by H-55 Commando with Gauss Rifle Performance ------------- Evolutions (2) 1000 Regions Visited (7) 1400 Robots Destroyed (52) 260 Value Destroyed (1312) 1312 Prototype IDs (1) 20 Alien Tech Used (0) 0 Bonus (56) 56 TOTAL SCORE: 4048 Bonus ------- High Alert Combat Kills 17 Follower Combat Kills 39 Cogmind --------- Core Integrity 0/550 Matter 300/300 Energy 99/100 System Corruption 1% Temperature Cool (0) Movement Core (50) Location -8/Materials Parts ------- > --- POWER (1) -------- (None) > --- PROPULSION (3) --- (None) > --- UTILITY (4) ------ (None) > --- WEAPON (3) ------- (None) > --- INVENTORY (5) ---- Airjet Small Storage Unit Signal Interpreter System Restoration Module Datajack Peak State ------------ > --- POWER ------------ Light Deuterium Engine > --- PROPULSION ------- Light Treads Light Treads Carbon-fiber Leg > --- UTILITY ---------- Small Storage Unit Improved Signal Interpreter Advanced Targeting Computer Improved Light Armor Plating > --- WEAPON ----------- Assault Rifle Heavy Assault Rifle Scythe > --- INVENTORY -------- Airjet Signal Interpreter Light Armor Plating System Restoration Module Datajack Mining Laser Plasma Cutter Heavy Mace [Rating: 25] Favorites ----------- Power Ion Engine Engine Ion Engine Power Core Light Nuclear Core Propulsion Carbon-fiber Leg Treads Light Treads Leg Carbon-fiber Leg Wheel Compact Wheel Flight Unit Flight Unit Utility Small Storage Unit Device Sensor Array Storage Small Storage Unit Processor Advanced Targeting Computer Protection Light Armor Plating Weapon Light Assault Rifle Energy Gun Improved EM Shotgun Energy Cannon Light EM Pulse Cannon Ballistic Gun Light Assault Rifle Launcher Grenade Launcher Special Weapon Mining Laser Impact Weapon Heavy Mace Slashing Weapon Scythe Special Melee Weapon Datajack Build | -11 -10 -10 -9 -9 -9 -8 -8 ------- Run | Yrd Mat Min Mat Min Exi Min Mat Slots Evolved 4 | . . . 2 . . . 2 Power . | . . . . . . . . Propulsion 1 | . . . 1 . . . . Utility 2 | . . . 1 . . . 1 Weapon 1 | . . . . . . . 1 Parts Attached 68 | 7 2 . 16 8 2 4 29 Power 8 | 1 . . 2 1 . 1 3 Engine 7 | 1 . . 2 1 . 1 2 Core 1 | . . . . . . . 1 Reactor . | . . . . . . . . Propulsion 19 | 3 . . 6 3 . 2 5 Treads 3 | . . . . . . . 3 Leg 9 | 2 . . 5 1 . . 1 Wheel 4 | 1 . . . . . 2 1 Hover . | . . . . . . . . Flight 3 | . . . 1 2 . . . Utility 13 | 1 2 . 2 . 2 . 6 Device 2 | . 2 . . . . . . Storage 4 | 1 . . . . 2 . 1 Processor 3 | . . . 2 . . . 1 Hackware . | . . . . . . . . Protection 4 | . . . . . . . 4 Artifact . | . . . . . . . . Weapon 28 | 2 . . 6 4 . 1 15 Energy Gun 2 | . . . 1 . . . 1 Energy Cannon 2 | . . . . . . 1 1 Ballistic Gun 8 | 2 . . . . . . 6 Ballistic Cannon . | . . . . . . . . Launcher 3 | . . . 3 . . . . Special Weapon 6 | . . . 1 . . . 5 Impact Weapon 3 | . . . 1 2 . . . Slashing Weapon 2 | . . . . . . . 2 Piercing Weapon . | . . . . . . . . Special Melee Weapon 2 | . . . . 2 . . . Unidentified Prototypes 1 | . . . 1 . . . . Parts Lost 34 | . . 4 2 5 . 1 22 Power 5 | . . 1 1 . . . 3 Propulsion 12 | . . 1 1 3 . 1 6 Utility 5 | . . 1 . . . . 4 Weapon 12 | . . 1 . 2 . . 9 Highest Loss Streak 8 | . . 4 1 6 . 1 8 To Critical Strikes . | . . . . . . . . Average Slot Usage (%) 84 | . 92 87 95 58 66 66 84 Engine 5 | . 14 14 8 . . 1 4 Core 1 | . . . . . . . 2 Treads 2 | . . . . . . . 5 Leg 13 | . 28 22 31 2 . . 3 Wheel 5 | . . . . . . 5 13 Flight 1 | . . . . 7 11 3 . Storage 10 | . 14 14 11 11 11 11 8 Processor 16 | . . . 21 22 22 22 16 Protection 3 | . . . . . . . 7 Energy Gun 3 | . . . 8 1 . . 1 Energy Cannon 1 | . . . . . . 7 3 Ballistic Gun 7 | . 28 26 2 . . . 9 Launcher 1 | . . . 5 . . . . Special Weapon 1 | . . . 1 . . . 1 Impact Weapon 3 | . . . 3 6 11 11 . Slashing Weapon 2 | . . . . . . . 6 Special Melee Weapon 1 | . . . . 9 11 3 . Naked Turns 33 | . . . . . . . 33 Heaviest Build 21 | 13 14 14 14 9 9 17 21 Greatest Support 45 | 20 20 20 45 30 3 32 42 Greatest Overweight (x) 3 | 2 . 1 1 2 2 3 2 Average Overweight (x) . | . . . . 1 2 1 . Largest Inventory Capacity 8 | 8 8 8 8 8 8 8 8 Average Capacity 7 | 6 8 8 8 8 8 8 7 Most Carried 8 | 4 7 7 8 8 7 6 8 Average Carried 6 | 1 5 7 6 6 6 5 6 Final Capacity 8 | 8 8 8 8 8 8 8 5 Final Carried 8 | 4 7 7 8 6 6 5 5 Class Distribution -------------------- 65% | Mutant 30% | Scavenger-Mutant 4% | Scavenger-Gunner Dominant Class ---------------- Mutant | -10/Materials Mutant | -10/Mines Mutant | -9/Materials Mutant | -9/Mines Mutant | -9/Exiles Mutant | -8/Mines Scavenger-Mutant | -8/Materials Resources | -11 -10 -10 -9 -9 -9 -8 -8 ----------- Run | Yrd Mat Min Mat Min Exi Min Mat Matter Collected 982 | 282 14 6 197 62 . 130 291 Remotely . | . . . . . . . . Salvage Created 1479 | 70 69 . 461 35 . 138 706 Parts 92 | 4 9 . 36 1 . 3 39 Haulers Intercepted . | . . . . . . . . Recyclers Shooed 1 | . . . 1 . . . . Parts Field Recycled . | . . . . . . . . Retrieved Matter . | . . . . . . . . Parts Self-Destructed . | . . . . . . . . Prevented . | . . . . . . . . Kills | -11 -10 -10 -9 -9 -9 -8 -8 ------- Run | Yrd Mat Min Mat Min Exi Min Mat Combat Hostiles Destroyed 36 | . 3 . 19 1 . 1 12 Melee 9 | . . . . 1 . . 8 Guns 9 | . 3 . 4 . . . 2 Cannons 1 | . . . . . . . 1 AOE 16 | . . . 15 . . 1 . Classes Destroyed 10 | 1 2 . 4 . . 1 2 Worker 3 | . . . 1 . . . 2 Builder 1 | . . . 1 . . . . Tunneler 2 | . . . . . . 2 . Recycler 3 | 1 . . . . . 1 1 Operator 1 | . . . . . . . 1 Watcher 6 | . 1 . 2 . . . 3 Swarmer 18 | . 3 . 11 . . 1 3 Grunt 7 | . . . 3 1 . . 3 Sentry 9 | . . . 5 . . . 4 Hunter 2 | . . . . . . . 2 Best Kill Streak 5 | 1 3 . 5 1 . 4 5 Combat Bots Only 5 | . 3 . 4 1 . 1 5 Max Kills in Single Turn 3 | 1 1 . 3 1 . 1 1 Gunslinging . | . . . . . . . . Exploded 3 | . . . 3 . . 1 . Melee 1 | . . . . 1 . . 1 Uniques/NPCs Destroyed . | . . . . . . . . Combat | -11 -10 -10 -9 -9 -9 -8 -8 -------- Run | Yrd Mat Min Mat Min Exi Min Mat Hostile Shots Fired 350 | . 11 20 59 18 . 14 228 Missed 93 | . 7 5 21 2 . 4 54 Damage Taken 4036 | . 33 680 589 327 . 84 2323 Core 969 | . 10 239 68 77 . 9 566 Absorbed by Shields . | . . . . . . . . Core Remaining (%) 53 | 100 . . . . . 61 . Volleys Fired 100 | 3 5 . 38 2 . 1 51 Largest 2 | 2 2 . 2 1 . 1 2 Hottest 145 | 40 40 . 145 45 . 56 100 Shots Fired 140 | 6 10 . 45 2 . 1 76 Gun 100 | 6 10 . 31 2 . . 51 Cannon 15 | . . . . . . 1 14 Launcher 12 | . . . 12 . . . . Special 13 | . . . 2 . . . 11 Kinetic 57 | 6 10 . 4 . . . 37 Thermal 13 | . . . 2 . . . 11 Explosive 12 | . . . 12 . . . . Electromagnetic 58 | . . . 27 2 . 1 28 Robot Hit Streak 15 | 3 5 . 15 10 . 3 10 Robot Miss Streak 3 | 1 1 . 3 1 . . 3 Penetration Max . | . . . . . . . . Secondary Targets 2 | . 2 . . . . . . Max Gunslinging Chain 1 | . 1 . . . . . . Shots Hit Robots 126 | 4 6 . 39 7 . 4 66 Core Hits 84 | 2 5 . 44 2 . 2 29 Critical Kills 1 | . . . . . . . 1 Critical Parts Destroyed . | . . . . . . . . Critical Strikes 5 | . . . . . . 1 4 Destroy 1 | . . . . . . . 1 Corrupt 1 | . . . . . . 1 . Sever 3 | . . . . . . . 3 Melee Attacks 36 | . . . . 5 . 3 28 Impact 5 | . . . . 2 . 3 . Slashing 28 | . . . . . . . 28 Piercing . | . . . . . . . . Sneak Attacks 9 | . . . . 4 . 3 2 Combat Hostiles 2 | . . . . 2 . . . Follow-up Attacks . | . . . . . . . . Damage Inflicted 3945 | 38 62 . 1648 324 . 391 1482 Guns 1046 | 38 62 . 457 29 . . 460 Cannons 319 | . . . . . . 19 300 Explosions 1503 | . . . 1167 186 . 62 88 Melee 1038 | . . . . 109 . 310 619 Ramming 4 | . . . . . . . 4 Kinetic 456 | 38 62 . 26 . . . 330 Thermal 444 | . . . 97 186 . 62 99 Explosive 1094 | . . . 1094 . . . . Electromagnetic 909 | . . . 431 29 . 19 430 Impact 419 | . . . . 109 . 310 . Slashing 619 | . . . . . . . 619 Piercing . | . . . . . . . . Highest Corruption 1 | . . . . . . . 1 Average Corruption 1 | . . . . . . . 1 Corruption Purged . | . . . . . . . . Corruption Blocked . | . . . . . . . . Overload Shots . | . . . . . . . . Overflow Damage 263 | . . . 13 39 . 197 14 Projectiles 1 | . . . . . . . 1 Explosions 46 | . . . 13 19 . 1 13 Melee 216 | . . . . 20 . 196 . Knockbacks 2 | . . . . 1 . 1 . Impact 2 | . . . . 1 . 1 . Kinetic . | . . . . . . . . Secondary . | . . . . . . . . Self-Inflicted Damage 212 | . . . 92 97 . . 23 Shots 7 | . . . 2 4 . . 1 Rammed 2 | . . . . . . . 2 Targets Rammed 2 | . . . . . . . 2 Kicked . | . . . . . . . . Crushed . | . . . . . . . . Highest Temperature 88 | . . 2 61 48 . . 88 Average Temperature 24 | . . 2 21 34 . . 25 Received Heat Transfer 932 | . 6 20 150 90 . . 666 Siege Activations . | . . . . . . . . Robots Corrupted 1 | . . . . . . . 1 Combat Hostiles 1 | . . . . . . . 1 Parts Fried 9 | . . . 2 . . 1 6 Impact Corruptions 8 | . . . . 1 . 7 . Robots Melted . | . . . . . . . . Combat Hostiles . | . . . . . . . . Parts Melted . | . . . . . . . . Heat Transferred 737 | . . . 150 350 . 50 187 Parts Sabotaged . | . . . . . . . . Parts Stolen . | . . . . . . . . Parts Stripped . | . . . . . . . . Power Chain Reactions 6 | . . . 2 1 . 1 2 Alert | -11 -10 -10 -9 -9 -9 -8 -8 ------- Run | Yrd Mat Min Mat Min Exi Min Mat Peak Influence 476 | 5 118 45 476 311 . 82 258 Initial 185 | . 3 45 1 185 . . 31 Average 151 | 1 38 36 238 295 . 40 127 Maximum Alert Level 2 | . . . 2 1 . . 1 Low Security (%) 70 | 100 100 100 34 6 . 100 90 Level 1 27 | . . . 60 93 . . 9 Level 2 1 | . . . 5 . . . . Level 3 . | . . . . . . . . Level 4 . | . . . . . . . . Level 5 . | . . . . . . . . High Security . | . . . . . . . . Max Security . | . . . . . . . . Squads Dispatched 11 | . 2 . 2 1 . . 6 Investigation 5 | . 1 . 1 . . . 3 Extermination . | . . . . . . . . Reinforcement 6 | . 1 . 1 1 . . 3 Assault . | . . . . . . . . Garrison . | . . . . . . . . Intercept . | . . . . . . . . Searches Triggered . | . . . . . . . . Construction Impeded 3 | . . . 1 1 . . 1 Haulers Reinforced . | . . . . . . . . Active Scanning Responses . | . . . . . . . . Cargo Convoy Interrupts . | . . . . . . . . Stealth | -11 -10 -10 -9 -9 -9 -8 -8 --------- Run | Yrd Mat Min Mat Min Exi Min Mat Distress Signals 4 | . 1 . 1 . . . 2 Communications Jammed . | . . . . . . . . Distress Signals . | . . . . . . . . Times Spotted 78 | . 7 10 21 3 . 3 34 Peak Tracking Total 12 | . 4 10 5 3 . 3 12 Tactical Retreats 5 | . . 1 1 . . . 3 Traps | -11 -10 -10 -9 -9 -9 -8 -8 ------- Run | Yrd Mat Min Mat Min Exi Min Mat Traps Triggered 4 | . . . 2 . . . 2 Indirectly . | . . . . . . . . Trap Hack Attempts . | . . . . . . . . Triggered . | . . . . . . . . Disarmed . | . . . . . . . . Reprogrammed . | . . . . . . . . Reused . | . . . . . . . . Traps Extracted . | . . . . . . . . Installed . | . . . . . . . . Triggered . | . . . . . . . . Machines | -11 -10 -10 -9 -9 -9 -8 -8 ---------- Run | Yrd Mat Min Mat Min Exi Min Mat Machines Disabled 15 | . . . 3 8 . . 4 Max in Single Turn 8 | . . . 1 8 . . 2 Machines Repaired . | . . . . . . . . Machines Dismantled . | . . . . . . . . Machines Sabotaged . | . . . . . . . . Overloaded Fab Kills . | . . . . . . . . Hacking | -11 -10 -10 -9 -9 -9 -8 -8 --------- Run | Yrd Mat Min Mat Min Exi Min Mat Machines Accessed 17 | . 4 . 5 . 1 . 7 Terminals 16 | . 4 . 5 . . . 7 Fabricators . | . . . . . . . . Repair Stations . | . . . . . . . . Recycling Units . | . . . . . . . . Scanalyzers . | . . . . . . . . Garrison Access . | . . . . . . . . Total Hacks 67 | . 10 . 16 . 23 . 18 Successful 40 | . 5 . 8 . 23 . 4 Failed 27 | . 5 . 8 . . . 14 Catastrophic 9 | . 1 . 2 . . . 6 Database Lockouts . | . . . . . . . . Manual 28 | . 7 . 9 . . . 12 Terminals 44 | . 10 . 16 . . . 18 Fabricators . | . . . . . . . . Repair Stations . | . . . . . . . . Recycling Units . | . . . . . . . . Scanalyzers . | . . . . . . . . Garrison Access . | . . . . . . . . Terminal Hacks 37 | . 5 . 6 . 23 . 3 Record 23 | . . . . . 23 . . Robot Analysis 1 | . . . . . . . 1 Branch Access Points 3 | . 1 . 1 . . . 1 Emergency Access Points 1 | . 1 . . . . . . Terminal Index 2 | . 1 . . . . . 1 Locate Traps 3 | . 1 . 2 . . . . Surveillance Status 1 | . . . 1 . . . . Registered Components 1 | . . . 1 . . . . Zone Layout 2 | . 1 . 1 . . . . Fabricator Hacks . | . . . . . . . . Repair Station Hacks . | . . . . . . . . Recycling Unit Hacks . | . . . . . . . . Scanalyzer . | . . . . . . . . Garrison Access Hacks . | . . . . . . . . Unauthorized Hacks 3 | . . . 2 . . . 1 Terminals 3 | . . . 2 . . . 1 Assimilate 2 | . . . 1 . . . 1 Detonate 1 | . . . 1 . . . . Fabricators . | . . . . . . . . Repair Stations . | . . . . . . . . Recycling Units . | . . . . . . . . Scanalyzers . | . . . . . . . . Garrison Access . | . . . . . . . . Data Cores Recovered . | . . . . . . . . Used . | . . . . . . . . Hacking Detections 16 | . 4 . 5 . . . 7 Full Trace Events 8 | . 1 . 1 . . . 6 Feedback Events 1 | . . . . . . . 1 Corruption 1 | . . . . . . . 1 Feedback Blocked . | . . . . . . . . Robot Schematics Acquired . | . . . . . . . . Robots Built . | . . . . . . . . Authchips . | . . . . . . . . Time . | . . . . . . . . Total Robot Build Rating . | . . . . . . . . Part Schematics Acquired . | . . . . . . . . Parts Built . | . . . . . . . . Authchips . | . . . . . . . . Time . | . . . . . . . . Total Part Build Rating . | . . . . . . . . Parts Repaired . | . . . . . . . . Time . | . . . . . . . . Parts Recycled . | . . . . . . . . Recycled Matter . | . . . . . . . . Retrieved Matter . | . . . . . . . . Retrieved Components . | . . . . . . . . Parts Scanalyzed . | . . . . . . . . Part Schematics Acquired . | . . . . . . . . Parts Damaged . | . . . . . . . . Bothacking | -11 -10 -10 -9 -9 -9 -8 -8 ------------ Run | Yrd Mat Min Mat Min Exi Min Mat Used RIF Installer . | . . . . . . . . Robots Hacked 1 | . . . . 1 . . . Non-combat 1 | . . . . 1 . . . Combat . | . . . . . . . . Robot Hacks Applied 1 | . . . . 1 . . . no_distress 1 | . . . . 1 . . . Relay Couplers Released . | . . . . . . . . Fabnet Peak Effective % . | . . . . . . . . Robots Rewired 1 | . . . . 1 . . . Allies Hacked . | . . . . . . . . Hacks Repelled . | . . . . . . . . Allies | -11 -10 -10 -9 -9 -9 -8 -8 -------- Run | Yrd Mat Min Mat Min Exi Min Mat Total Allies 1 | . . . . 1 . . . Largest Group 1 | . . . . 1 1 1 1 Highest-Rated Group 16 | . . . . 16 16 16 16 Highest-Rated Ally 16 | . . . . 16 16 16 16 Total Orders . | . . . . . . . . Ally Attacks 7 | . . . . 3 . 2 2 Total Damage 124 | . . . . 32 . 60 32 Kills 3 | . . . . 1 . 2 . Allies Corrupted . | . . . . . . . . Allies Melted . | . . . . . . . . Intel | -11 -10 -10 -9 -9 -9 -8 -8 ------- Run | Yrd Mat Min Mat Min Exi Min Mat Robot Analysis Total 1 | . . . . . . . 1 Derelict Logs Recovered . | . . . . . . . . Drone Launches . | . . . . . . . . Drone Recoveries . | . . . . . . . . Exploration | -11 -10 -10 -9 -9 -9 -8 -8 ------------- Run | Yrd Mat Min Mat Min Exi Min Mat Turns Passed 2375 | 92 204 67 673 103 270 64 902 Spaces Moved 1501 | 61 149 49 423 61 173 29 556 Core 348 | 5 . . 4 58 173 15 93 Treads 83 | . . . . . . . 83 Legs 721 | 47 149 49 419 3 . . 54 Wheels 349 | 9 . . . . . 14 326 Hover . | . . . . . . . . Flight . | . . . . . . . . Fastest Speed 50 | 50 120 120 100 100 150 100 50 Average Speed 118 | 112 120 137 119 125 150 132 103 Slowest Speed 200 | 150 120 190 120 150 150 200 190 Overloaded Moves . | . . . . . . . . Propulsion Burnouts . | . . . . . . . . Robots Hopped . | . . . . . . . . Cave-ins Triggered . | . . . . . . . . Exploration Rate (%) 26 | 4 36 18 36 16 53 8 44 Regions Visited 7 Branch Regions 4 Pre-discovered Areas 1 | . . . . . 1 . . Known Exits Taken 5 | . 1 . 1 1 1 1 . Unknown Exits Taken 2 | 1 . 1 . . . . . Scrap Searched . | . . . . . . . . Spaces Dug 7 | . . . 1 . . . 6 Terrain Destroyed 97 | . . . 70 14 . 4 9 Melee . | . . . . . . . . Projectile 7 | . . . 1 . . . 6 AOE 90 | . . . 69 14 . 4 3 Terrain Rammed . | . . . . . . . . Walls Destroyed . | . . . . . . . . Machines Disabled . | . . . . . . . . Actions | -11 -10 -10 -9 -9 -9 -8 -8 --------- Run | Yrd Mat Min Mat Min Exi Min Mat Total 1881 | 76 165 49 539 80 184 46 742 Wait 129 | . 6 1 47 2 4 10 59 Move 1494 | 60 148 48 422 60 172 28 556 Hop . | . . . . . . . . Pick Up 23 | 4 3 . 8 . 3 . 5 Fast Attach 35 | 7 1 . 8 1 . 2 16 Attach 19 | . 1 . 4 5 . 1 8 Detach 14 | 1 1 . 2 3 . . 7 Swap 14 | . . . 4 2 2 1 5 Drop 15 | 1 . . 6 . 3 . 5 Fire 100 | 3 5 . 38 2 . 1 51 Melee 36 | . . . . 5 . 3 28 Ram 2 | . . . . . . . 2 Kick . | . . . . . . . . Crush . | . . . . . . . . Escape Stasis . | . . . . . . . . Rewire . | . . . . . . . . Trap . | . . . . . . . . Miscellaneous . | . . . . . . . . Route ------- -11/Scrapyard -10/Materials (discovered 2 exits: *Min x2) -10/Mines -9/Materials (discovered 2 exits: *Min x2) -9/Mines -9/Exiles -8/Mines -8/Materials History --------- Turn | Location | Event 10 | -11/Scrapyard | Discovered new exit (range 15) 93 | -11/Scrapyard | Entered Materials 184 | -10/Materials | Identified exit to Mines 297 | -10/Materials | Entered Mines 304 | -10/Mines | Build established: Mutant 318 | -10/Mines | Assembled infested the area 323 | -10/Mines | Assisted by a Guerilla fighting off Assembled 339 | -10/Mines | Discovered new exit (range 14) 348 | -10/Mines | Core integrity fell below 50% 357 | -10/Mines | Core integrity fell below 20% 364 | -10/Mines | Entered Materials 364 | -9/Materials | Evolved 2 slots: Propulsion x1, Utility x1 393 | -9/Materials | Lost 4 parts (1p1n1u1w) 575 | -9/Materials | Identified exit to Mines 1037 | -9/Materials | Entered Mines 1080 | -9/Mines | Lost 6 parts (4n2w) 1100 | -9/Mines | Deemed a non-threat by the Exiles lab entrance 1133 | -9/Mines | Discovered new exit (range 5) 1138 | -9/Mines | Identified exit to Exiles 1140 | -9/Mines | Entered Exiles 1140 | -9/Exiles | Accompanied by 1 ally 1177 | -9/Exiles | Met 8R-AWN 1200 | -9/Exiles | Met EX-HEX 1244 | -9/Exiles | Met EX-BIN 1262 | -9/Exiles | Met EX-DEC 1275 | -9/Exiles | Learned location of Zion (-6) 1389 | -9/Exiles | Discovered new exit (range 14) 1404 | -9/Exiles | Identified exit to Mines 1410 | -9/Exiles | Entered Mines 1410 | -8/Mines | Accompanied by 1 ally 1435 | -8/Mines | Discovered new exit (range 8) 1471 | -8/Mines | Identified exit to Materials 1474 | -8/Mines | Entered Materials 1474 | -8/Materials | Accompanied by 1 ally 1474 | -8/Materials | Evolved 2 slots: Utility x1, Weapon x1 1734 | -8/Materials | Build established: Scavenger-Mutant 2004 | -8/Materials | Lost 3 parts (2n1u) 2273 | -8/Materials | Core integrity fell below 50% 2313 | -8/Materials | Lost 8 parts (1p3n2u2w) 2338 | -8/Materials | Core integrity fell below 20% 2366 | -8/Materials | Lost 7 parts (1p1n1u4w) 2376 | -8/Materials | Destroyed by H-55 Commando with Gauss Rifle Last Messages --------------- Mining Laser destroyed. Critical hit (Burn: +37). Lgt. Armor Plating destroyed. W-25 Informer sends out distress signal. Acquired 19 matter. K-01 Serf destroyed. Slammed into K-01 Serf. Destabilizing: System interference. Imp. Signal Interpreter temporarily disabled. Lgt. Treads destroyed. K-01 Serf collects debris. Critical hit (Burn: +37). Triggered Blade Trap. Massive razor-sharp blades shoot up from within the floor. Imp. Signal Interpreter severed. Connecting with Terminal... Feedback: System corruption (+1%). Slug penetrates Wall. Slammed into T-07 Excavator. Map ----- +----------------------------------------------------+ | | | | | | | | | | | | | | | | | | | | | | | | | | | | | | | | | | | | | ??????????????????????????????????? | | ????????????????#######???????????? | | ????????????????# #???????????? | | ?????????######## #???????????? | | ?????????# #???????????? | | ?????????# ### #???????????? | | ?????????# #?# #???????????? | | ??##+#####@ #?###+###???????????? | | ??# #??? ?????????????? | | ??# #??? ?????????????? | | ??# #?? """????????????? | | ??# #### #?? """????????????? | | ??# ????# #?# """ ???????????? | | ??# ?????# #?# ???????????? | | ??#??????# ##+#?####/###??????????? | | ?????????# #???????? ?????????????? | | ?????????# #???????? ?????????????? | | ?????????# #???????+ #????????##### | | ?????????# #???????# #????????#[[!! | | ?????????# #???????# #????????#[[!! | | ?????????# #???????# #????????# | | ?????????# #???????# ########## | | ?????????#h#???????# # ! + | | ?????????# #???????# # # | | ?????????#%######### # # | | ?????????# + ""T"" + | | ?????????########### # """"" ###### | | ???????????????????# #########????# | | ???????????????????# #????????????? | | ???????????????????# #????????????? | | ???????????????????# ????????????" | | ???????????????????# #??????????# " | +----------------------------------------------------+ Best States ------------- Heat Dissipation 31 Energy Generation 14 Energy Capacity 250 Matter Stores 300 Matter Capacity 300 Sight Range 16 Robot Scan Range 14 Terrain Scan Density 10 Armor Coverage 150 Evasion (%) 55 Targeting Accuracy 8 Recoil Reduction 2 Item Schematics ----------------- None Robot Schematics ------------------ None Fabricated ------------ Nothing Alien Tech Used ----------------- None Achievements -------------- root@ Challenges ------------ None Game ------ Seed GrenadeTerrabombOptics Manual? 0 Play Time 00:43:38 Cumulative 16.9 hours Start 2024.08.06 @ 16:23:48 End 2024.08.06 @ 17:10:44 Sessions 1 Manual Loads 0 Difficulty Rogue Special Mode None Game No. 14 Rogue 14 Adventurer 0 Explorer 0 Win Type - Total 0 Types 0/0/0/0/0/0/0/0/0 Lore% 22 Gallery% 19 Achievement% 21 Wizard Run 0 Options --------- Layout 1 ASCII 0 Keyboard 1 Movement Numpad Keybinds 1 Fullscreen 1 Font 24/Smallcaps Map View 50x35 Zoom Use 0% Tactical HUD 0 Map Filters NONE Filters NONE Steam 0 RUN: 01c09e48-fe38-4855-9579-62c2a8408038